[Event "Titled Tuesday Blitz January 17 Late 2023"]
[White "Dominguez Perez, Leinier"]
[Black "Chigaev, Maksim"]
[WhiteFideId "3503240"]
[BlackFideId "4108116"]
[WhiteElo "2739"]
[BlackElo "2628"]
[Result "1-0"]
[Round "10"]
[TimeControl "180+2"]
[Date "2023.01.17"]
[WhiteClock "0:00:13"]
[BlackClock "0:00:04"]

1. d4 {[%clk 0:03:00]}  Nf6 {[%clk 0:02:59]} 2. Nf3 {[%clk 0:02:59]}  g6 {[%clk 0:02:59]} 3. e3 {[%clk 0:02:58]}  Bg7 {[%clk 0:03:00]} 4. Be2 {[%clk 0:02:58]}  O-O {[%clk 0:03:00]} 5. O-O {[%clk 0:02:58]}  d6 {[%clk 0:03:01]} 6. c4 {[%clk 0:02:58]}  Nbd7 {[%clk 0:02:59]} 7. Nc3 {[%clk 0:02:57]}  e5 {[%clk 0:03:00]} 8. Qc2 {[%clk 0:02:56]}  Re8 {[%clk 0:03:00]} 9. Rd1 {[%clk 0:02:55]}  exd4 {[%clk 0:03:00]} 10. Nxd4 {[%clk 0:02:53]}  Nc5 {[%clk 0:03:00]} 11. f3 {[%clk 0:02:49]}  a5 {[%clk 0:02:58]} 12. e4 {[%clk 0:02:48]}  c6 {[%clk 0:02:57]} 13. Be3 {[%clk 0:02:34]}  Nfd7 {[%clk 0:02:56]} 14. Qd2 {[%clk 0:02:30]}  a4 {[%clk 0:02:54]} 15. Rab1 {[%clk 0:02:25]}  Qa5 {[%clk 0:02:49]} 16. b4 {[%clk 0:02:20]}  axb3 {[%clk 0:02:49]} 17. axb3 {[%clk 0:02:20]}  Qb4 {[%clk 0:02:49]} 18. Bf2 {[%clk 0:01:31]}  Ra3 {[%clk 0:01:45]} 19. Nc2 {[%clk 0:01:25]}  Nxb3 {[%clk 0:01:43]} 20. Qxd6 {[%clk 0:01:08]}  Qxc3 {[%clk 0:00:57]} 21. Qxa3 {[%clk 0:01:07]}  Qxc2 {[%clk 0:00:52]} 22. Bd3 {[%clk 0:01:05]}  Qc3 {[%clk 0:00:51]} 23. Qxb3 {[%clk 0:01:00]}  Qe5 {[%clk 0:00:51]} 24. Bc2 {[%clk 0:00:56]}  Nc5 {[%clk 0:00:45]} 25. Qb4 {[%clk 0:00:50]}  Ne6 {[%clk 0:00:45]} 26. c5 {[%clk 0:00:47]}  h5 {[%clk 0:00:45]} 27. Bb3 {[%clk 0:00:45]}  Nf4 {[%clk 0:00:43]} 28. Qd2 {[%clk 0:00:44]}  Ne6 {[%clk 0:00:20]} 29. Qd6 {[%clk 0:00:36]}  Qg5 {[%clk 0:00:18]} 30. Bxe6 {[%clk 0:00:35]}  Bxe6 {[%clk 0:00:17]} 31. Rxb7 {[%clk 0:00:34]}  Be5 {[%clk 0:00:14]} 32. Qd2 {[%clk 0:00:26]}  Bf4 {[%clk 0:00:14]} 33. h4 {[%clk 0:00:22]}  Qf6 {[%clk 0:00:09]} 34. Qd4 {[%clk 0:00:17]}  Be5 {[%clk 0:00:09]} 35. Qe3 {[%clk 0:00:18]}  Ra8 {[%clk 0:00:09]} 36. Qg5 {[%clk 0:00:17]}  Qxg5 {[%clk 0:00:08]} 37. hxg5 {[%clk 0:00:17]}  Ra2 {[%clk 0:00:06]} 38. Bd4 {[%clk 0:00:13]}  Bxd4+ {[%clk 0:00:03]} 39. Rxd4 {[%clk 0:00:13]}  Rc2 {[%clk 0:00:03]} 40. Rd8+ {[%clk 0:00:13]}  Kg7 {[%clk 0:00:04]} 41. Rbb8 {[%clk 0:00:13]} 1-0


[Site "https://www.chess.com"]

[Event "Titled Tuesday Blitz January 17 Late 2023"]
[White "Kamsky, Gata"]
[Black "Nasuta, Grzegorz"]
[WhiteFideId "2000024"]
[BlackFideId "1141686"]
[WhiteElo "2665"]
[BlackElo "2552"]
[Result "1-0"]
[Round "10"]
[TimeControl "180+2"]
[Date "2023.01.17"]
[WhiteClock "0:00:20"]
[BlackClock "0:00:06"]

1. e4 {[%clk 0:03:00]}  c5 {[%clk 0:02:59]} 2. Nf3 {[%clk 0:02:53]}  d6 {[%clk 0:03:00]} 3. d4 {[%clk 0:02:48]}  cxd4 {[%clk 0:03:01]} 4. Nxd4 {[%clk 0:02:48]}  Nf6 {[%clk 0:03:01]} 5. Nc3 {[%clk 0:02:48]}  a6 {[%clk 0:03:01]} 6. a4 {[%clk 0:02:47]}  e6 {[%clk 0:02:56]} 7. a5 {[%clk 0:02:45]}  Be7 {[%clk 0:02:56]} 8. Bd3 {[%clk 0:02:45]}  Nc6 {[%clk 0:02:47]} 9. Nxc6 {[%clk 0:02:42]}  bxc6 {[%clk 0:02:48]} 10. O-O {[%clk 0:02:42]}  O-O {[%clk 0:02:45]} 11. Bd2 {[%clk 0:02:41]}  Bb7 {[%clk 0:02:23]} 12. Na4 {[%clk 0:02:35]}  c5 {[%clk 0:02:03]} 13. f3 {[%clk 0:02:32]}  Nd7 {[%clk 0:02:02]} 14. Bc3 {[%clk 0:02:14]}  Qc7 {[%clk 0:01:56]} 15. b3 {[%clk 0:02:13]}  Bc6 {[%clk 0:01:47]} 16. Qe2 {[%clk 0:01:57]}  Qb7 {[%clk 0:01:47]} 17. f4 {[%clk 0:01:53]}  Bb5 {[%clk 0:01:41]} 18. Nb2 {[%clk 0:01:48]}  Rfe8 {[%clk 0:01:36]} 19. Rf3 {[%clk 0:01:45]}  Bf6 {[%clk 0:01:33]} 20. e5 {[%clk 0:01:43]}  Be7 {[%clk 0:00:28]} 21. exd6 {[%clk 0:01:38]}  Bxd6 {[%clk 0:00:29]} 22. Nc4 {[%clk 0:01:37]}  Be7 {[%clk 0:00:22]} 23. Be4 {[%clk 0:01:36]}  Bc6 {[%clk 0:00:22]} 24. Bxc6 {[%clk 0:01:11]}  Qxc6 {[%clk 0:00:23]} 25. Rd1 {[%clk 0:01:05]}  Bf6 {[%clk 0:00:20]} 26. Be5 {[%clk 0:00:49]}  Bxe5 {[%clk 0:00:14]} 27. fxe5 {[%clk 0:00:48]}  Nf8 {[%clk 0:00:14]} 28. Nb6 {[%clk 0:00:37]}  Ra7 {[%clk 0:00:13]} 29. Rd6 {[%clk 0:00:36]}  Qc7 {[%clk 0:00:12]} 30. h4 {[%clk 0:00:34]}  Rd8 {[%clk 0:00:09]} 31. Rfd3 {[%clk 0:00:31]}  Rxd6 {[%clk 0:00:07]} 32. exd6 {[%clk 0:00:29]}  Qc6 {[%clk 0:00:07]} 33. Qe5 {[%clk 0:00:24]}  Nd7 {[%clk 0:00:07]} 34. Nxd7 {[%clk 0:00:22]}  Rxd7 {[%clk 0:00:08]} 35. Rg3 {[%clk 0:00:21]}  f6 {[%clk 0:00:07]} 36. Qxe6+ {[%clk 0:00:20]}  Kf8 {[%clk 0:00:08]} 37. Rd3 {[%clk 0:00:19]}  Qc8 {[%clk 0:00:05]} 38. h5 {[%clk 0:00:19]}  Qe8 {[%clk 0:00:05]} 39. Qd5 {[%clk 0:00:19]}  Qe5 {[%clk 0:00:04]} 40. Qxe5 {[%clk 0:00:19]}  fxe5 {[%clk 0:00:05]} 41. Rd5 {[%clk 0:00:19]}  e4 {[%clk 0:00:05]} 42. Kf2 {[%clk 0:00:19]}  Kf7 {[%clk 0:00:05]} 43. Ke3 {[%clk 0:00:19]}  Ke6 {[%clk 0:00:06]} 44. Kxe4 {[%clk 0:00:20]} 1-0


[Site "https://www.chess.com"]

[Event "Titled Tuesday Blitz January 17 Late 2023"]
[White "Yuan, Qingyu"]
[Black "Svane, Frederik"]
[WhiteFideId "8609772"]
[BlackFideId "12923044"]
[WhiteElo "2373"]
[BlackElo "2600"]
[Result "1-0"]
[Round "10"]
[TimeControl "180+2"]
[Date "2023.01.17"]
[WhiteClock "0:00:39"]
[BlackClock "0:00:01"]

1. e4 {[%clk 0:03:00]}  c6 {[%clk 0:02:58]} 2. d4 {[%clk 0:03:00]}  d5 {[%clk 0:02:58]} 3. exd5 {[%clk 0:03:01]}  cxd5 {[%clk 0:02:59]} 4. Bd3 {[%clk 0:03:01]}  Nf6 {[%clk 0:02:58]} 5. h3 {[%clk 0:03:02]}  Nc6 {[%clk 0:02:53]} 6. c3 {[%clk 0:03:02]}  e5 {[%clk 0:02:53]} 7. dxe5 {[%clk 0:03:03]}  Nxe5 {[%clk 0:02:54]} 8. Nf3 {[%clk 0:03:04]}  Nxd3+ {[%clk 0:02:54]} 9. Qxd3 {[%clk 0:03:05]}  Bd6 {[%clk 0:02:47]} 10. O-O {[%clk 0:03:04]}  O-O {[%clk 0:02:47]} 11. Be3 {[%clk 0:03:04]}  Re8 {[%clk 0:02:40]} 12. Nbd2 {[%clk 0:03:04]}  Bc7 {[%clk 0:02:35]} 13. Rad1 {[%clk 0:02:49]}  Qd6 {[%clk 0:02:20]} 14. Rfe1 {[%clk 0:02:40]}  Bd7 {[%clk 0:02:18]} 15. Bd4 {[%clk 0:02:38]}  Ne4 {[%clk 0:00:46]} 16. Nxe4 {[%clk 0:02:10]}  dxe4 {[%clk 0:00:46]} 17. Rxe4 {[%clk 0:02:11]}  Rxe4 {[%clk 0:00:46]} 18. Qxe4 {[%clk 0:02:11]}  Re8 {[%clk 0:00:47]} 19. Qc2 {[%clk 0:01:53]}  Qc6 {[%clk 0:00:13]} 20. Qd3 {[%clk 0:01:23]}  Be6 {[%clk 0:00:05]} 21. Ng5 {[%clk 0:01:20]}  g6 {[%clk 0:00:03]} 22. Nxe6 {[%clk 0:01:01]}  Qxe6 {[%clk 0:00:04]} 23. Qd2 {[%clk 0:00:42]}  Qxa2 {[%clk 0:00:03]} 24. Qh6 {[%clk 0:00:42]}  Be5 {[%clk 0:00:02]} 25. Bxe5 {[%clk 0:00:39]}  Qa4 {[%clk 0:00:01]} 26. Qg7# {[%clk 0:00:39]} 1-0


[Site "https://www.chess.com"]

[Event "Titled Tuesday Blitz January 17 Late 2023"]
[White "Jobava, Baadur"]
[Black "Domingo Nunez, Ruben"]
[WhiteFideId "13601520"]
[BlackFideId "22245570"]
[WhiteElo "2578"]
[BlackElo "2416"]
[Result "1-0"]
[Round "10"]
[TimeControl "180+2"]
[Date "2023.01.17"]
[WhiteClock "0:00:03"]
[BlackClock "0:00:15"]

1. b3 {[%clk 0:03:00]}  d6 {[%clk 0:02:49]} 2. Bb2 {[%clk 0:03:01]}  Nd7 {[%clk 0:02:50]} 3. d4 {[%clk 0:03:01]}  Ngf6 {[%clk 0:02:50]} 4. Nf3 {[%clk 0:03:00]}  g6 {[%clk 0:02:51]} 5. g3 {[%clk 0:03:00]}  Bg7 {[%clk 0:02:51]} 6. Bg2 {[%clk 0:03:01]}  O-O {[%clk 0:02:52]} 7. O-O {[%clk 0:03:02]}  c5 {[%clk 0:02:52]} 8. dxc5 {[%clk 0:03:02]}  Nxc5 {[%clk 0:02:53]} 9. c4 {[%clk 0:03:00]}  Rb8 {[%clk 0:02:54]} 10. Nc3 {[%clk 0:03:00]}  a6 {[%clk 0:02:54]} 11. b4 {[%clk 0:02:57]}  Ne6 {[%clk 0:02:49]} 12. a4 {[%clk 0:02:54]}  Qd7 {[%clk 0:02:50]} 13. a5 {[%clk 0:02:52]}  Qc7 {[%clk 0:02:50]} 14. Qb3 {[%clk 0:02:36]}  Bd7 {[%clk 0:02:48]} 15. Rfc1 {[%clk 0:02:33]}  Rfc8 {[%clk 0:02:48]} 16. Nd5 {[%clk 0:02:33]}  Qd8 {[%clk 0:02:39]} 17. Nxf6+ {[%clk 0:02:32]}  exf6 {[%clk 0:02:32]} 18. Nd2 {[%clk 0:02:28]}  b6 {[%clk 0:02:29]} 19. axb6 {[%clk 0:02:20]}  Qxb6 {[%clk 0:02:28]} 20. Ne4 {[%clk 0:02:11]}  Qxb4 {[%clk 0:02:20]} 21. Qxb4 {[%clk 0:02:09]}  Rxb4 {[%clk 0:02:21]} 22. Bxf6 {[%clk 0:01:52]}  Rbxc4 {[%clk 0:01:41]} 23. Rxc4 {[%clk 0:01:53]}  Rxc4 {[%clk 0:01:41]} 24. Bxg7 {[%clk 0:01:54]}  Kxg7 {[%clk 0:01:41]} 25. Nxd6 {[%clk 0:01:55]}  Rc2 {[%clk 0:01:41]} 26. e3 {[%clk 0:01:53]}  Nc5 {[%clk 0:01:38]} 27. Bf1 {[%clk 0:01:44]}  Bc6 {[%clk 0:01:33]} 28. h4 {[%clk 0:01:39]}  h5 {[%clk 0:01:28]} 29. Nc4 {[%clk 0:01:36]}  Ne4 {[%clk 0:01:18]} 30. Bd3 {[%clk 0:01:31]}  Rc3 {[%clk 0:01:18]} 31. Ne5 {[%clk 0:01:31]}  Bb7 {[%clk 0:01:11]} 32. Rb1 {[%clk 0:01:25]}  Nc5 {[%clk 0:01:08]} 33. Bf1 {[%clk 0:01:19]}  Kf6 {[%clk 0:00:57]} 34. Nd7+ {[%clk 0:01:15]}  Nxd7 {[%clk 0:00:55]} 35. Rxb7 {[%clk 0:01:16]}  Nc5 {[%clk 0:00:52]} 36. Rb6+ {[%clk 0:01:16]}  Kg7 {[%clk 0:00:53]} 37. Bxa6 {[%clk 0:01:16]}  Nxa6 {[%clk 0:00:53]} 38. Rxa6 {[%clk 0:01:17]}  Rc2 {[%clk 0:00:53]} 39. Kg2 {[%clk 0:01:17]}  Rb2 {[%clk 0:00:54]} 40. Kf3 {[%clk 0:01:15]}  Rc2 {[%clk 0:00:53]} 41. Rd6 {[%clk 0:01:15]}  Rb2 {[%clk 0:00:54]} 42. Rd3 {[%clk 0:01:15]}  Ra2 {[%clk 0:00:54]} 43. e4 {[%clk 0:01:15]}  Ra4 {[%clk 0:00:51]} 44. Ke3 {[%clk 0:01:15]}  Ra1 {[%clk 0:00:51]} 45. f3 {[%clk 0:01:15]}  Re1+ {[%clk 0:00:52]} 46. Kf4 {[%clk 0:01:16]}  Rg1 {[%clk 0:00:52]} 47. e5 {[%clk 0:01:14]}  Re1 {[%clk 0:00:52]} 48. Rd7 {[%clk 0:01:13]}  Kf8 {[%clk 0:00:49]} 49. Ra7 {[%clk 0:01:12]}  Re2 {[%clk 0:00:47]} 50. Ra5 {[%clk 0:01:12]}  Rb2 {[%clk 0:00:47]} 51. Ra3 {[%clk 0:01:08]}  Kg7 {[%clk 0:00:44]} 52. Kg5 {[%clk 0:01:06]}  Rb5 {[%clk 0:00:42]} 53. Kf4 {[%clk 0:01:00]}  Rb4+ {[%clk 0:00:42]} 54. Ke3 {[%clk 0:01:01]}  Rb1 {[%clk 0:00:41]} 55. Rd3 {[%clk 0:01:00]}  Re1+ {[%clk 0:00:36]} 56. Kf4 {[%clk 0:01:00]}  Kf8 {[%clk 0:00:37]} 57. Re3 {[%clk 0:00:58]}  Rb1 {[%clk 0:00:36]} 58. Kg5 {[%clk 0:00:55]}  Kg7 {[%clk 0:00:31]} 59. f4 {[%clk 0:00:53]}  Rb4 {[%clk 0:00:26]} 60. g4 {[%clk 0:00:19]}  hxg4 {[%clk 0:00:26]} 61. Kxg4 {[%clk 0:00:18]}  Ra4 {[%clk 0:00:26]} 62. Rd3 {[%clk 0:00:12]}  Rb4 {[%clk 0:00:25]} 63. Rd7 {[%clk 0:00:12]}  Re4 {[%clk 0:00:22]} 64. Kf3 {[%clk 0:00:05]}  Re1 {[%clk 0:00:22]} 65. Rc7 {[%clk 0:00:04]}  Kf8 {[%clk 0:00:20]} 66. Kg4 {[%clk 0:00:02]}  Kg7 {[%clk 0:00:20]} 67. Kf3 {[%clk 0:00:02]}  Kf8 {[%clk 0:00:20]} 68. Rc6 {[%clk 0:00:02]}  Kg7 {[%clk 0:00:20]} 69. Rf6 {[%clk 0:00:03]}  Rh1 {[%clk 0:00:20]} 70. Kg4 {[%clk 0:00:03]}  Rg1+ {[%clk 0:00:20]} 71. Kf3 {[%clk 0:00:03]}  Rh1 {[%clk 0:00:21]} 72. Kg3 {[%clk 0:00:04]}  Rg1+ {[%clk 0:00:21]} 73. Kh2 {[%clk 0:00:05]}  Rg4 {[%clk 0:00:20]} 74. Kh3 {[%clk 0:00:05]}  Rg1 {[%clk 0:00:21]} 75. Rd6 {[%clk 0:00:05]}  Rf1 {[%clk 0:00:20]} 76. Rd4 {[%clk 0:00:05]}  Kh6 {[%clk 0:00:19]} 77. Kg3 {[%clk 0:00:04]}  Rg1+ {[%clk 0:00:16]} 78. Kh2 {[%clk 0:00:04]}  Rg4 {[%clk 0:00:16]} 79. Kh3 {[%clk 0:00:04]}  Kh5 {[%clk 0:00:16]} 80. Rd8 {[%clk 0:00:02]}  Rxh4+ {[%clk 0:00:14]} 81. Kg3 {[%clk 0:00:03]}  Rg4+ {[%clk 0:00:15]} 82. Kf3 {[%clk 0:00:03]} 1-0


[Site "https://www.chess.com"]

[Event "Titled Tuesday Blitz January 17 Late 2023"]
[White "Liang, Justin"]
[Black "Hansen, Eric"]
[WhiteFideId "2099942"]
[BlackFideId "2606771"]
[WhiteElo "2052"]
[BlackElo "2609"]
[Result "0-1"]
[Round "10"]
[TimeControl "180+2"]
[Date "2023.01.17"]
[WhiteClock "0:01:41"]
[BlackClock "0:02:16"]

1. d4 {[%clk 0:03:00]}  Nf6 {[%clk 0:02:58]} 2. c4 {[%clk 0:02:59]}  e6 {[%clk 0:02:54]} 3. Nf3 {[%clk 0:02:57]}  b6 {[%clk 0:02:50]} 4. g3 {[%clk 0:02:53]}  Ba6 {[%clk 0:02:47]} 5. Nbd2 {[%clk 0:02:52]}  Bb4 {[%clk 0:02:46]} 6. Qc2 {[%clk 0:02:49]}  Bb7 {[%clk 0:02:45]} 7. Bg2 {[%clk 0:02:48]}  Be4 {[%clk 0:02:45]} 8. Qb3 {[%clk 0:02:48]}  Nc6 {[%clk 0:02:44]} 9. a3 {[%clk 0:02:47]}  Bxd2+ {[%clk 0:02:42]} 10. Bxd2 {[%clk 0:02:15]}  Nxd4 {[%clk 0:02:42]} 11. Nxd4 {[%clk 0:02:16]}  Bxg2 {[%clk 0:02:43]} 12. Rg1 {[%clk 0:02:16]}  Bb7 {[%clk 0:02:43]} 13. O-O-O {[%clk 0:02:13]}  Ne4 {[%clk 0:02:43]} 14. Be3 {[%clk 0:02:13]}  O-O {[%clk 0:02:42]} 15. f3 {[%clk 0:02:13]}  Nc5 {[%clk 0:02:39]} 16. Qc2 {[%clk 0:02:14]}  a5 {[%clk 0:02:40]} 17. Bf4 {[%clk 0:02:09]}  d6 {[%clk 0:02:37]} 18. e4 {[%clk 0:02:09]}  e5 {[%clk 0:02:36]} 19. Bxe5 {[%clk 0:02:02]}  dxe5 {[%clk 0:02:37]} 20. Ne6 {[%clk 0:02:02]}  Qf6 {[%clk 0:02:35]} 21. Nxf8 {[%clk 0:02:01]}  Rxf8 {[%clk 0:02:35]} 22. Qc3 {[%clk 0:01:57]}  Ne6 {[%clk 0:02:24]} 23. Rd3 {[%clk 0:01:54]}  Nd4 {[%clk 0:02:23]} 24. Re1 {[%clk 0:01:50]}  c5 {[%clk 0:02:21]} 25. Kb1 {[%clk 0:01:50]}  a4 {[%clk 0:02:18]} 26. Rf1 {[%clk 0:01:41]}  Bxe4 {[%clk 0:02:16]} 0-1


[Site "https://www.chess.com"]

[Event "Titled Tuesday Blitz January 17 Late 2023"]
[White "Leiva, Gianmarco"]
[Black "Zhigalko, Sergei"]
[WhiteFideId "3804399"]
[BlackFideId "13502956"]
[WhiteElo "2392"]
[BlackElo "2572"]
[Result "0-1"]
[Round "10"]
[TimeControl "180+2"]
[Date "2023.01.17"]
[WhiteClock "0:00:02"]
[BlackClock "0:00:03"]

1. e4 {[%clk 0:03:00]}  c5 {[%clk 0:02:59]} 2. Nf3 {[%clk 0:03:01]}  Nc6 {[%clk 0:02:59]} 3. Bb5 {[%clk 0:02:59]}  Nf6 {[%clk 0:03:00]} 4. Nc3 {[%clk 0:02:56]}  Qc7 {[%clk 0:02:58]} 5. O-O {[%clk 0:02:54]}  Nd4 {[%clk 0:02:58]} 6. Re1 {[%clk 0:02:54]}  a6 {[%clk 0:02:58]} 7. Bf1 {[%clk 0:02:54]}  Ng4 {[%clk 0:02:58]} 8. e5 {[%clk 0:02:54]}  h5 {[%clk 0:02:58]} 9. Nd5 {[%clk 0:02:10]}  Qc6 {[%clk 0:02:58]} 10. Nxd4 {[%clk 0:02:07]}  cxd4 {[%clk 0:02:56]} 11. c4 {[%clk 0:02:02]}  e6 {[%clk 0:02:55]} 12. Nf4 {[%clk 0:01:54]}  d6 {[%clk 0:02:55]} 13. Nxh5 {[%clk 0:01:24]}  Nxe5 {[%clk 0:02:43]} 14. d3 {[%clk 0:01:18]}  b6 {[%clk 0:02:19]} 15. Ng3 {[%clk 0:01:06]}  Bb7 {[%clk 0:02:16]} 16. b4 {[%clk 0:00:55]}  Be7 {[%clk 0:02:08]} 17. Bb2 {[%clk 0:00:52]}  Rh4 {[%clk 0:01:59]} 18. Re4 {[%clk 0:00:47]}  Rxe4 {[%clk 0:01:38]} 19. Nxe4 {[%clk 0:00:39]}  d5 {[%clk 0:01:38]} 20. Bxd4 {[%clk 0:00:27]}  dxe4 {[%clk 0:01:31]} 21. Bxe5 {[%clk 0:00:26]}  O-O-O {[%clk 0:01:31]} 22. b5 {[%clk 0:00:19]}  Qd7 {[%clk 0:01:04]} 23. bxa6 {[%clk 0:00:19]}  Bxa6 {[%clk 0:01:05]} 24. d4 {[%clk 0:00:17]}  f6 {[%clk 0:00:58]} 25. Bf4 {[%clk 0:00:17]}  Bc5 {[%clk 0:00:57]} 26. Be3 {[%clk 0:00:12]}  Bxd4 {[%clk 0:00:57]} 27. Bxd4 {[%clk 0:00:11]}  Qxd4 {[%clk 0:00:58]} 28. Qc1 {[%clk 0:00:09]}  Kc7 {[%clk 0:00:11]} 29. Rb1 {[%clk 0:00:09]}  Bb7 {[%clk 0:00:11]} 30. Rb5 {[%clk 0:00:03]}  Bc6 {[%clk 0:00:10]} 31. Rb3 {[%clk 0:00:03]}  Ra8 {[%clk 0:00:06]} 32. Rg3 {[%clk 0:00:02]}  g5 {[%clk 0:00:06]} 33. a3 {[%clk 0:00:02]}  Rd8 {[%clk 0:00:05]} 34. h4 {[%clk 0:00:02]}  gxh4 {[%clk 0:00:06]} 35. Qf4+ {[%clk 0:00:02]}  Qe5 {[%clk 0:00:02]} 36. Qxh4 {[%clk 0:00:02]}  Rd1 {[%clk 0:00:02]} 37. Rg7+ {[%clk 0:00:02]}  Bd7 {[%clk 0:00:03]} 38. Qh5 {[%clk 0:00:02]}  Qxh5 {[%clk 0:00:03]} 0-1


[Site "https://www.chess.com"]

[Event "Titled Tuesday Blitz January 17 Late 2023"]
[White "Pasti, Aron"]
[Black "Fernandez Guillen, Ernesto J."]
[WhiteFideId "785857"]
[BlackFideId "3512428"]
[WhiteElo "2361"]
[BlackElo "2477"]
[Result "1-0"]
[Round "10"]
[TimeControl "180+2"]
[Date "2023.01.17"]
[WhiteClock "0:00:33"]
[BlackClock "0:01:00"]

1. e4 {[%clk 0:03:00]}  c5 {[%clk 0:02:52]} 2. Nf3 {[%clk 0:03:01]}  d6 {[%clk 0:02:53]} 3. d4 {[%clk 0:03:01]}  cxd4 {[%clk 0:02:54]} 4. Nxd4 {[%clk 0:03:02]}  Nf6 {[%clk 0:02:54]} 5. Nc3 {[%clk 0:03:02]}  a6 {[%clk 0:02:55]} 6. Bg5 {[%clk 0:03:01]}  e6 {[%clk 0:02:56]} 7. f4 {[%clk 0:03:01]}  Qb6 {[%clk 0:02:56]} 8. e5 {[%clk 0:02:56]}  h6 {[%clk 0:02:56]} 9. Bh4 {[%clk 0:02:52]}  g5 {[%clk 0:02:57]} 10. exf6 {[%clk 0:02:49]}  gxh4 {[%clk 0:02:56]} 11. Qd2 {[%clk 0:02:48]}  Nc6 {[%clk 0:02:56]} 12. Nb3 {[%clk 0:02:41]}  h5 {[%clk 0:02:24]} 13. O-O-O {[%clk 0:02:40]}  Rh6 {[%clk 0:02:25]} 14. Qe1 {[%clk 0:02:08]}  Bd7 {[%clk 0:02:18]} 15. Nd5 {[%clk 0:02:01]}  Qd8 {[%clk 0:02:18]} 16. f5 {[%clk 0:01:58]}  e5 {[%clk 0:02:18]} 17. Qxh4 {[%clk 0:01:50]}  Rh8 {[%clk 0:02:10]} 18. g4 {[%clk 0:01:46]}  a5 {[%clk 0:01:53]} 19. a4 {[%clk 0:01:43]}  Nb4 {[%clk 0:01:51]} 20. g5 {[%clk 0:01:29]}  Bxa4 {[%clk 0:01:40]} 21. g6 {[%clk 0:01:23]}  Bh6+ {[%clk 0:01:29]} 22. Kb1 {[%clk 0:01:21]}  Qc8 {[%clk 0:01:30]} 23. Nxb4 {[%clk 0:01:13]}  axb4 {[%clk 0:01:31]} 24. g7 {[%clk 0:01:10]}  Rg8 {[%clk 0:01:11]} 25. Qxb4 {[%clk 0:01:10]}  Qc6 {[%clk 0:01:01]} 26. Rxd6 {[%clk 0:00:36]}  Qxh1 {[%clk 0:01:00]} 27. Rd1 {[%clk 0:00:33]} 1-0


[Site "https://www.chess.com"]

[Event "Titled Tuesday Blitz January 17 Late 2023"]
[White "Tanenbaum, Zachary"]
[Black "Timmermans, Mark"]
[WhiteFideId "2060850"]
[BlackFideId "1026399"]
[WhiteElo "2261"]
[BlackElo "2392"]
[Result "0-1"]
[Round "10"]
[TimeControl "180+2"]
[Date "2023.01.17"]
[WhiteClock "0:00:06"]
[BlackClock "0:01:18"]

1. e4 {[%clk 0:03:00]}  e5 {[%clk 0:02:59]} 2. Nf3 {[%clk 0:03:00]}  Nc6 {[%clk 0:02:58]} 3. Bc4 {[%clk 0:03:01]}  Nf6 {[%clk 0:02:59]} 4. d3 {[%clk 0:03:00]}  Be7 {[%clk 0:02:55]} 5. O-O {[%clk 0:02:59]}  O-O {[%clk 0:02:55]} 6. Re1 {[%clk 0:03:00]}  d6 {[%clk 0:02:55]} 7. a4 {[%clk 0:03:00]}  Kh8 {[%clk 0:02:54]} 8. Nc3 {[%clk 0:03:00]}  Ng8 {[%clk 0:02:54]} 9. Nd5 {[%clk 0:02:58]}  f5 {[%clk 0:02:53]} 10. h3 {[%clk 0:02:57]}  Bf6 {[%clk 0:02:51]} 11. c3 {[%clk 0:02:47]}  Nce7 {[%clk 0:02:42]} 12. Nxf6 {[%clk 0:02:43]}  Nxf6 {[%clk 0:02:41]} 13. Ng5 {[%clk 0:02:31]}  Qe8 {[%clk 0:02:38]} 14. Ne6 {[%clk 0:02:30]}  Bxe6 {[%clk 0:02:37]} 15. Bxe6 {[%clk 0:02:31]}  fxe4 {[%clk 0:02:30]} 16. dxe4 {[%clk 0:02:32]}  Qg6 {[%clk 0:02:30]} 17. Bb3 {[%clk 0:01:57]}  Nh5 {[%clk 0:02:27]} 18. Qg4 {[%clk 0:01:47]}  Nf4 {[%clk 0:02:26]} 19. Qxg6 {[%clk 0:01:45]}  Nexg6 {[%clk 0:02:26]} 20. Bc4 {[%clk 0:01:35]}  Nh4 {[%clk 0:02:18]} 21. Bf1 {[%clk 0:01:33]}  Nxh3+ {[%clk 0:02:14]} 22. Kh2 {[%clk 0:01:22]}  Nxf2 {[%clk 0:02:12]} 23. Kg3 {[%clk 0:01:22]}  Ng6 {[%clk 0:01:55]} 24. Bc4 {[%clk 0:00:29]}  h5 {[%clk 0:01:39]} 25. Bg5 {[%clk 0:00:29]}  Ng4 {[%clk 0:01:38]} 26. Rh1 {[%clk 0:00:25]}  Nf4 {[%clk 0:01:38]} 27. Rh4 {[%clk 0:00:17]}  g6 {[%clk 0:01:37]} 28. Be7 {[%clk 0:00:14]}  Rfe8 {[%clk 0:01:35]} 29. Bg5 {[%clk 0:00:14]}  Kg7 {[%clk 0:01:35]} 30. Bxf4 {[%clk 0:00:10]}  exf4+ {[%clk 0:01:35]} 31. Kxf4 {[%clk 0:00:11]}  Rf8+ {[%clk 0:01:35]} 32. Kg3 {[%clk 0:00:11]}  Rae8 {[%clk 0:01:36]} 33. Bd3 {[%clk 0:00:10]}  Re5 {[%clk 0:01:32]} 34. Rhh1 {[%clk 0:00:09]}  Nf2 {[%clk 0:01:29]} 35. Bc2 {[%clk 0:00:06]}  Rg5+ {[%clk 0:01:18]} 36. Kh2 {[%clk 0:00:06]}  Nxh1 {[%clk 0:01:18]} 37. Kxh1 {[%clk 0:00:06]}  Rf2 {[%clk 0:01:18]} 38. Bb3 {[%clk 0:00:06]}  Rgxg2 {[%clk 0:01:18]} 0-1


[Site "https://www.chess.com"]

[Event "Titled Tuesday Blitz January 17 Late 2023"]
[White "Fiorito, Joaquin"]
[Black "Vakhlamov, Igor L."]
[WhiteFideId "180173"]
[BlackFideId "24126748"]
[WhiteElo "2405"]
[BlackElo "2413"]
[Result "1-0"]
[Round "10"]
[TimeControl "180+2"]
[Date "2023.01.17"]
[WhiteClock "0:01:45"]
[BlackClock "0:00:03"]

1. d4 {[%clk 0:03:00]}  d5 {[%clk 0:03:00]} 2. Nc3 {[%clk 0:03:01]}  Bf5 {[%clk 0:02:58]} 3. Bf4 {[%clk 0:03:01]}  e6 {[%clk 0:02:58]} 4. f3 {[%clk 0:03:00]}  Nf6 {[%clk 0:02:44]} 5. g4 {[%clk 0:02:59]}  Bg6 {[%clk 0:02:45]} 6. h4 {[%clk 0:02:59]}  h6 {[%clk 0:02:43]} 7. Qd2 {[%clk 0:02:58]}  c5 {[%clk 0:02:38]} 8. Nb5 {[%clk 0:02:57]}  Na6 {[%clk 0:02:38]} 9. e3 {[%clk 0:02:58]}  Rc8 {[%clk 0:02:34]} 10. c3 {[%clk 0:02:57]}  c4 {[%clk 0:02:26]} 11. Nxa7 {[%clk 0:02:54]}  Ra8 {[%clk 0:02:20]} 12. Nb5 {[%clk 0:02:55]}  Be7 {[%clk 0:02:12]} 13. Bg3 {[%clk 0:02:47]}  O-O {[%clk 0:02:09]} 14. Nh3 {[%clk 0:02:46]}  Qa5 {[%clk 0:02:09]} 15. a4 {[%clk 0:02:44]}  Nd7 {[%clk 0:01:06]} 16. Nf4 {[%clk 0:02:43]}  Bh7 {[%clk 0:01:05]} 17. g5 {[%clk 0:02:42]}  hxg5 {[%clk 0:01:03]} 18. hxg5 {[%clk 0:02:43]}  Bxg5 {[%clk 0:01:03]} 19. Qh2 {[%clk 0:02:43]}  Bh6 {[%clk 0:01:03]} 20. Rg1 {[%clk 0:02:39]}  Kh8 {[%clk 0:00:46]} 21. Bh4 {[%clk 0:02:36]}  e5 {[%clk 0:00:37]} 22. Nxd5 {[%clk 0:02:31]}  exd4 {[%clk 0:00:35]} 23. exd4 {[%clk 0:02:27]}  Rfe8+ {[%clk 0:00:32]} 24. Kd1 {[%clk 0:02:27]}  Nb6 {[%clk 0:00:29]} 25. Bf6 {[%clk 0:01:50]}  Nxd5 {[%clk 0:00:04]} 26. Qxh6 {[%clk 0:01:49]}  Ne3+ {[%clk 0:00:03]} 27. Kc1 {[%clk 0:01:46]}  gxf6 {[%clk 0:00:03]} 28. Qg7# {[%clk 0:01:45]} 1-0


[Site "https://www.chess.com"]